bitfinex/quotes_ETHUSD_20241122
["timestamp","ask_amount","ask_price","bid_price","bid_amount"]
[1732310426897,0.55,3280.8,3279.6,0.03048271]
[1732310427106,0.85829456,3280.7,3279.5,1.53670502]
[1732310427429,0.55,3280.8,3279.0,0.03048271]
[1732310427430,0.55,3280.2,3279.2,1.53412396]
[1732310427614,0.8278,3280.1,3279.2,1.56461083]
[1732310428016,0.8278,3280.1,3279.2,0.03048687]
[1732310428186,0.8278,3280.1,3279.3,1.51410388]
[1732310430914,0.8278,3280.1,3279.2,1.53412396]
[1732310431123,0.8278,3280.1,3279.2,1.5646116]
[1732310432254,0.8278,3280.1,3279.4,1.51477927]
[1732310432619,0.8278,3280.1,3279.5,0.0619982]
[1732310432817,0.8278,3280.1,3279.6,1.5747271]
[1732310433033,0.8278,3280.1,3279.4,1.51477927]
[1732310433216,0.8278,3280.1,3279.7,1.65116778]
[1732310434418,0.8278,3280.1,3279.8,1.52671308]
[1732310434615,0.8019,3280.4,3279.8,1.52671308]
[1732310434860,0.8019,3280.4,3279.9,0.0619982]
[1732310435014,0.8019,3280.4,3279.9,1.57609485]
[1732310436124,0.55,3280.3,3279.9,0.0619982]
[1732310436418,0.7856,3280.2,3279.7,1.58916958]
[1732310436624,0.7856,3280.2,3279.8,0.06199982]
[1732310436846,0.7856,3280.2,3279.3,1.51410388]
[1732310437050,0.7856,3280.2,3279.9,0.06199982]
[1732310437219,0.7856,3280.2,3279.7,1.58916958]
[1732310437416,0.7856,3280.2,3279.8,0.06200309]
[1732310437639,0.7856,3280.2,3279.7,1.58916958]
[1732310437834,0.7856,3280.2,3279.8,0.06203909]
[1732310438062,0.7856,3280.2,3279.4,1.51477927]
[1732310438263,0.7856,3280.2,3279.9,0.06203909]
[1732310438417,0.7856,3280.2,3279.4,1.51477927]
[1732310438623,0.7856,3280.2,3279.6,1.5747271]
[1732310439020,0.7856,3280.2,3279.7,1.65120867]
[1732310442960,0.7881,3280.0,3279.7,0.06203909]
[1732310443166,0.21212,3280.2,3278.5,0.5067]
[1732310443167,1.3381,3279.8,3278.5,0.5067]
[1732310443401,0.55,3279.5,3278.6,1.53879756]
[1732310443603,0.7881,3279.4,3278.6,1.60083665]
[1732310447605,0.55,3279.3,3278.6,1.60083665]
[1732310447785,0.8112,3279.2,3278.6,1.60083665]
[1732310452388,0.809,3280.1,3278.7,0.5067]
[1732310452584,0.83949456,3280.0,3278.8,1.58003039]
[1732310453019,0.83949456,3280.0,3278.9,1.56623163]
[1732310453393,0.83949456,3280.0,3278.3,0.5067]
[1732310453394,0.83949456,3280.0,3279.1,1.56215582]
[1732310453606,0.55,3279.7,3279.1,1.56215582]
[1732310453807,0.55,3279.5,3278.4,1.59197909]
[1732310454019,0.804,3279.4,3278.4,1.59197909]
[1732310454247,0.804,3279.4,3278.5,0.06233374]
[1732310454451,0.804,3279.4,3278.6,1.53879756]
[1732310454816,0.804,3279.4,3278.8,1.51769338]
[1732310455213,0.8078,3279.2,3278.9,0.06233374]
[1732310455413,0.55,3279.1,3278.2,1.53388812]
[1732310455619,0.8078,3279.0,3278.3,1.56611352]
[1732310456706,1.36799456,3278.9,3278.3,1.56611352]
[1732310456906,0.7875,3278.7,3278.3,1.56611352]
[1732310457345,0.7875,3278.7,3277.7,1.53325487]
[1732310457642,0.7875,3278.7,3277.8,0.06239433]
[1732310457810,0.7875,3278.7,3277.9,1.51916526]
[1732310458147,0.7875,3278.7,3277.7,1.53325487]
[1732310458359,0.7875,3278.7,3278.0,0.06239433]
[1732310458645,0.7875,3278.7,3278.1,0.06239433]
[1732310458818,0.7875,3278.7,3278.2,1.53388812]
[1732310459148,0.7875,3278.7,3278.3,1.56639193]
[1732310460019,0.58049456,3278.6,3278.3,1.56639193]
[1732310460256,0.7568,3278.5,3278.3,1.56639193]
[1732310460423,0.03049456,3278.4,3278.3,1.50377978]
[1732310460605,0.55,3278.6,3278.3,0.0626056]
[1732310460808,0.55,3278.6,3278.3,1.50377978]
[1732310461008,0.5431509,3278.6,3277.6,1.57960292]
[1732310461513,0.5431509,3278.6,3277.8,1.50529523]
[1732310461927,0.5431509,3278.6,3277.6,1.57960292]
[1732310462159,0.5431509,3278.6,3278.0,1.58962213]
[1732310462366,0.5431509,3278.6,3277.6,1.57960292]
[1732310462668,0.5431509,3278.6,3278.2,1.53388812]
[1732310462875,0.5431509,3278.6,3277.7,0.0626056]
[1732310463167,0.5431509,3278.6,3277.8,1.50529523]
[1732310463461,0.825,3278.5,3277.9,0.06054431]
[1732310463666,0.825,3278.5,3278.0,1.58962213]
[1732310464158,0.825,3278.5,3278.1,0.06054431]
[1732310464349,0.825,3278.5,3278.2,1.53388812]
[1732310464872,0.825,3278.5,3277.5,0.00644458]
[1732310464873,0.825,3278.5,3278.3,0.06054431]
[1732310465057,0.825,3278.5,3277.6,1.57960292]
[1732310465366,0.825,3278.5,3277.7,0.03050413]
[1732310465576,0.825,3278.5,3277.8,1.50529523]
[1732310466080,0.825,3278.5,3277.6,1.57960292]
[1732310466221,0.825,3278.5,3277.5,0.00644458]
[1732310466222,0.7565,3278.3,3277.9,0.05984966]
[1732310466567,0.7565,3278.3,3277.5,0.00644458]
[1732310466568,0.7565,3278.1,3277.6,1.57960292]
[1732310466929,0.7565,3278.1,3277.8,1.50529523]
[1732310467325,0.7565,3278.1,3277.6,1.57960292]
[1732310467556,0.7565,3278.1,3277.9,0.05784773]
[1732310467865,0.7565,3278.1,3277.6,1.57960292]
[1732310468060,0.7565,3278.1,3278.0,1.58962213]
[1732310468559,0.7565,3278.1,3278.0,1.64746986]
[1732310469286,1.3065,3278.1,3278.0,1.64746986]
[1732310470484,1.3065,3278.1,3278.0,0.05784773]
[1732310470985,0.55,3278.0,3277.7,1.53325487]
[1732310471280,0.55,3278.0,3277.5,0.00644458]
[1732310471281,0.818,3277.8,3277.6,1.57960292]
[1732310471588,0.73565,3278.0,3277.6,1.57960292]
[1732310471589,0.81259456,3277.7,3277.6,1.57960292]
[1732310472083,0.7821,3277.6,3277.5,0.00644458]
[1732310472382,1.3321,3277.6,3277.5,0.00644458]
[1732310472883,0.04049456,3278.8,3277.5,0.00644458]
[1732310472884,0.766,3277.9,3277.5,0.00644458]
[1732310473095,0.01,3279.6,3277.5,0.03695313]
[1732310473387,0.01,3279.6,3277.6,1.57960292]
[1732310473388,0.766,3278.3,3277.6,1.57960292]
[1732310475468,0.8223,3278.1,3277.6,1.57960292]
[1732310475786,0.58049456,3278.0,3277.6,1.57960292]
[1732310475948,4.13632629,3280.4,3277.5,0.00644458]
[1732310475949,0.8223,3277.7,3277.5,0.00644458]
[1732310476809,0.8223,3277.7,3277.5,1.55144141]
[1732310478388,0.8223,3279.1,3277.6,1.57960292]
[1732310478706,0.85279456,3279.0,3277.6,1.57960292]
[1732310479885,0.55,3278.9,3277.6,1.57960292]
[1732310480196,0.7796,3278.7,3277.6,1.57960292]
[1732310480365,0.7796,3278.5,3277.6,1.57960292]
[1732310480570,0.7796,3278.3,3277.6,1.57960292]
[1732310480964,0.7796,3278.3,3277.6,2.11410292]
[1732310481191,0.7796,3278.3,3277.6,1.57960292]
[1732310481561,0.58049456,3278.2,3277.6,1.57960292]
[1732310482111,0.58049456,3278.2,3277.5,0.00644458]
[1732310482112,0.55,3278.0,3277.5,0.00644458]
[1732310482282,0.7796,3277.9,3277.5,1.55144141]
[1732310485381,0.8108,3279.5,3277.6,1.61011205]
[1732310485724,0.8108,3279.3,3277.8,1.50529523]
[1732310485926,0.8108,3279.1,3277.9,1.51916526]
[1732310486423,0.8108,3279.1,3278.0,1.59606671]
[1732310486625,0.8108,3279.1,3278.1,0.56499698]
[1732310486826,0.8108,3279.1,3278.2,1.53388812]
[1732310487323,0.8108,3279.1,3278.3,0.05425229]
[1732310487480,0.8108,3279.1,3278.4,1.59197909]
[1732310488187,0.8108,3279.1,3278.5,0.05415399]
[1732310488775,0.8108,3280.2,3278.6,0.03049699]
[1732310489036,0.8261,3280.0,3278.6,1.53879756]
[1732310489239,0.8261,3279.8,3278.7,1.62252091]
[1732310489411,0.7856,3280.4,3278.7,1.62252091]
[1732310489412,0.8261,3279.6,3278.7,1.62252091]
[1732310489606,0.8261,3279.4,3278.7,1.62252091]
[1732310489912,0.03049456,3279.3,3278.7,1.62252091]
[1732310490439,0.55,3279.1,3278.7,1.62252091]
[1732310490615,0.03049456,3279.0,3278.7,1.62252091]
[1732310490809,0.03049456,3279.0,3278.7,0.0540983]
[1732310491214,0.03049456,3279.0,3278.3,1.50377978]
[1732310491423,0.03049456,3279.0,3278.8,0.05394102]
[1732310491636,0.03049456,3279.0,3278.3,1.50377978]
[1732310491850,0.55,3279.1,3278.9,0.05394102]
[1732310492046,0.55,3279.1,3278.3,1.50377978]
[1732310492197,0.55,3279.1,3279.0,0.05394102]
[1732310492402,0.55,3279.1,3278.3,1.50377978]
[1732310492641,0.55,3279.1,3279.0,0.05394102]
[1732310492806,0.55,3279.1,3278.3,1.50377978]
[1732310493009,0.55,3279.1,3279.0,0.05394102]
[1732310493203,0.55,3279.1,3278.2,0.00644458]
[1732310493204,0.7635,3279.0,3278.2,0.00644458]
[1732310493441,0.7635,3279.0,3278.3,1.50377978]
[1732310495149,0.7635,3279.0,3278.2,0.00644458]
[1732310495150,0.55,3278.7,3278.2,0.00644458]
[1732310495305,0.8274,3278.5,3278.2,0.00644458]
[1732310495689,0.03049456,3278.4,3278.2,0.00644458]
[1732310496246,0.8274,3278.5,3278.2,0.00644458]
[1732310496556,0.03049456,3278.4,3278.2,0.00644458]
[1732310497050,0.8274,3278.3,3278.2,0.00644458]
[1732310497253,1.3774,3278.3,3278.2,0.00644458]
[1732310502538,1.3774,3278.3,3278.2,0.06053631]
[1732310502733,1.3774,3278.3,3278.2,0.00644458]
[1732310502981,1.3774,3278.3,3278.2,0.06053631]
[1732310503138,1.3774,3278.3,3278.2,0.00644458]
[1732310503339,1.3774,3278.3,3278.2,0.06053631]
[1732310505646,1.3774,3278.3,3278.2,0.00644458]
[1732310506049,0.8134,3279.3,3278.2,0.00644458]
[1732310506253,0.61756,3280.3,3278.2,0.00644458]
[1732310506254,0.7929,3279.1,3278.2,0.00644458]
[1732310506483,0.03049456,3279.0,3278.3,0.05427852]
[1732310506780,0.7929,3278.9,3278.3,0.05427852]
[1732310506983,0.01,3279.8,3278.3,0.05427852]
[1732310506984,0.03049456,3278.8,3278.3,0.05427852]
[1732310507157,0.7929,3278.7,3278.3,0.05427852]
[1732310507359,0.01,3279.4,3278.2,0.00644458]
[1732310507360,0.8224,3278.5,3278.2,0.00644458]
[1732310507594,0.03049456,3278.4,3278.2,0.00644458]
[1732310507763,0.58049456,3278.4,3278.2,0.00644458]
[1732310514159,0.03049456,3278.3,3278.2,0.00644458]
[1732310514456,0.58049456,3278.3,3278.2,0.00644458]
[1732310514768,0.55,3278.4,3278.2,0.00644458]
[1732310515248,0.03049456,3278.3,3278.2,0.00644458]
[1732310516379,0.55,3278.4,3278.2,0.00644458]
[1732310516895,0.55,3278.4,3278.3,0.05421459]
[1732310517204,0.8037,3279.9,3278.3,0.5345]
[1732310517368,0.04049456,3280.0,3278.3,0.5345]
[1732310517369,0.8037,3279.7,3278.3,0.58869002]
[1732310517690,0.8037,3279.5,3278.3,0.5345]
[1732310517989,0.03049456,3279.4,3278.4,0.05419002]
[1732310518656,0.55,3279.4,3278.4,0.05419002]
[1732310519300,0.58049456,3279.4,3278.4,0.05419002]
[1732310520691,0.57049456,3279.4,3278.4,0.05419002]
[1732310523009,0.54,3279.4,3278.4,0.05419002]
[1732310524116,0.8037,3279.5,3278.5,0.5345]
[1732310524271,0.8037,3280.0,3278.7,0.5345]
[1732310524471,0.31429068,3279.9,3278.7,0.5345]
[1732310524684,0.31429068,3279.9,3278.8,0.05408845]
[1732310524685,0.8037,3279.8,3278.8,0.05408845]
[1732310524975,0.03049456,3279.7,3278.8,0.05408845]
[1732310525605,0.58049456,3279.7,3278.8,0.05408845]
[1732310526380,0.55,3279.9,3278.9,0.5345]
[1732310526585,0.58049456,3279.9,3278.9,0.5345]
[1732310526788,0.58049456,3279.9,3278.5,0.0304962]
[1732310526789,0.58049456,3279.9,3279.1,0.5345]
[1732310527112,0.55,3279.9,3279.2,0.05401804]
[1732310527275,0.8037,3280.3,3279.2,0.05401804]
[1732310527276,0.83419456,3280.3,3279.2,0.05401804]
[1732310527609,0.99312456,3280.3,3279.2,0.05401804]
[1732310528801,0.55,3280.2,3279.2,0.05401804]
[1732310529002,0.03049456,3280.1,3279.2,0.05401804]
[1732310530220,0.58049456,3280.2,3279.2,0.05401804]
[1732310530426,0.55,3280.2,3279.3,0.5345]
[1732310530928,0.55,3280.2,3279.4,0.05401804]
[1732310531292,0.55,3280.3,3279.5,0.5345]
[1732310531492,5.37,3281.0,3279.5,0.5345]
[1732310531493,0.8028,3280.8,3279.5,0.5345]
[1732310531720,0.03049456,3280.7,3279.5,0.5345]
[1732310531920,0.03049456,3280.7,3279.6,0.05379204]
[1732310532728,0.8028,3280.8,3279.6,0.05379204]
[1732310532729,0.8028,3280.8,3279.7,0.5345]
[1732310533134,0.55,3280.7,3279.8,0.05379204]
[1732310533338,0.55,3280.7,3279.8,0.08427921]
[1732310533634,0.55,3280.7,3279.9,0.5345]
[1732310533798,0.55,3280.8,3279.9,0.5345]
[1732310533989,0.55,3280.8,3280.0,0.05366271]
[1732310534437,0.03049456,3280.7,3280.0,0.05366271]
[1732310534599,0.55,3280.5,3280.0,0.05366271]
[1732310534931,0.03049456,3280.4,3280.0,0.05366271]
[1732310535290,0.58049456,3280.5,3280.0,0.05366271]
[1732310535496,0.55,3280.7,3280.0,0.05366271]
[1732310535690,0.03049456,3280.6,3280.0,0.05366271]
[1732310536295,0.8322,3281.2,3280.1,0.5345]
[1732310536495,1.6644,3281.2,3280.3,0.5345]
[1732310536800,0.03049456,3281.1,3280.3,0.5345]
[1732310537426,0.03049456,3281.1,3280.4,0.05363489]
[1732310537803,2.04802,3281.4,3280.3,0.5345]
[1732310537804,0.58049456,3281.3,3280.3,0.5345]
[1732310538203,0.58049456,3281.3,3280.4,0.05360544]
[1732310538503,0.58049456,3281.3,3280.3,0.5345]
[1732310538708,0.58049456,3281.3,3280.4,0.05353182]
[1732310538892,0.77521402,3281.3,3280.4,0.05353182]
[1732310539434,0.58049456,3281.3,3280.4,0.05353182]
[1732310542428,0.55,3281.1,3280.4,0.05353182]
[1732310542732,0.03049456,3281.0,3280.0,0.5345]
[1732310543045,0.03049456,3281.0,3280.1,0.05332235]
[1732310545002,0.55,3280.6,3280.1,0.05332235]
[1732310545207,0.03049456,3280.5,3280.1,0.05332235]
[1732310545406,0.03049456,3280.5,3279.7,0.5345]
[1732310545641,0.03049456,3280.5,3280.2,0.05340251]
[1732310545850,0.03049456,3280.5,3279.7,0.5345]
[1732310546140,0.55,3280.6,3280.3,0.05340251]
[1732310546141,0.58049456,3280.6,3280.3,0.05340251]
[1732310546344,0.58049456,3280.6,3279.1,0.5345]
[1732310546550,0.03049456,3280.6,3279.2,0.61844363]
[1732310547126,0.03049456,3280.7,3279.2,0.58795652]
[1732310547352,0.03049456,3280.7,3279.2,0.61844338]
[1732310548031,0.03049456,3280.7,3279.2,0.58795652]
[1732310549931,0.55,3280.8,3279.4,0.5345]
[1732310550130,0.55,3280.8,3279.6,0.5345]
[1732310550459,0.8322,3280.9,3279.8,0.5345]
[1732310550622,0.8255,3281.2,3279.8,0.5345]
[1732310550946,0.03049456,3281.1,3279.9,0.05341233]
[1732310551710,0.8255,3281.0,3279.9,0.05341233]
[1732310551916,0.58049456,3280.9,3279.8,0.5345]
[1732310552118,0.58049456,3280.9,3279.9,0.05338779]
[1732310556532,0.8255,3280.6,3279.9,0.05338779]
[1732310556728,0.58049456,3280.5,3279.8,0.5345]
[1732310556914,0.58049456,3280.5,3279.5,0.5345]
[1732310557254,0.58049456,3280.5,3279.6,0.05353342]
[1732310557456,0.8298,3280.4,3279.6,0.05353342]
[1732310557628,0.58049456,3280.3,3279.6,0.05353342]
[1732310559725,0.55,3280.1,3279.6,0.05353342]
[1732310559925,0.03049456,3280.0,3279.4,0.00644458]
[1732310560351,0.03049456,3280.0,3279.5,0.05353342]
[1732310560974,0.55,3280.3,3279.5,0.05353342]
[1732310560975,0.03049456,3280.2,3279.5,0.05353342]
[1732310562522,0.8298,3280.1,3279.5,0.05353342]
[1732310562770,0.58049456,3280.0,3279.5,0.05353342]
[1732310565371,0.58049456,3280.0,3279.4,0.00644458]
[1732310565679,0.55,3279.8,3279.5,0.05174897]
[1732310565969,0.03049456,3279.7,3279.5,0.05174897]
[1732310566775,0.03049456,3279.9,3279.5,0.05174897]
[1732310568753,0.55,3279.7,3279.5,0.05174897]
[1732310568954,0.03049456,3279.6,3279.5,0.05174897]
[1732310570293,0.58049456,3280.0,3279.5,0.05174897]
[1732310574195,0.28365691,3279.9,3279.5,0.05174897]
[1732310574354,1.38169456,3279.8,3279.5,0.05174897]
[1732310574562,0.55,3279.6,3279.5,0.05174897]
[1732310574883,0.86415147,3279.6,3279.5,0.05174897]
[1732310577993,1.62455147,3279.6,3279.5,0.05174897]
[1732310578189,1.62455147,3279.6,3279.4,0.00644458]
[1732310578444,1.04405691,3279.5,3279.4,0.00644458]
[1732310578742,1.87757126,3279.5,3279.4,0.00644458]
[1732310579045,1.59405691,3279.5,3279.4,0.00644458]
[1732310579753,1.62455147,3279.5,3279.4,0.00644458]
[1732310580303,1.74622947,3279.5,3279.4,0.00644458]
[1732310581450,1.74625638,3279.5,3279.4,0.00644458]
[1732310581615,1.92188202,3279.5,3279.4,0.00644458]
[1732310582015,1.6381982,3279.5,3279.4,0.00644458]
[1732310582253,1.92181499,3279.5,3279.4,0.00644458]
[1732310584250,1.16141499,3279.5,3279.4,0.00644458]
[1732310584449,0.40529479,3279.5,3279.4,0.05874695]
[1732310584652,0.121678,3279.5,3279.4,0.00644458]
[1732310584948,0.43580391,3279.5,3279.4,0.00644458]
[1732310585742,0.98591045,3279.5,3279.4,0.00644458]
[1732310586142,1.80641045,3279.5,3279.4,0.00644458]
[1732310586385,1.9870515,3279.5,3279.4,0.00644458]
[1732310587884,1.9970515,3279.5,3279.4,0.00644458]
[1732310588087,2.0070515,3279.5,3279.4,0.00644458]
[1732310588880,1.97655694,3279.5,3279.4,0.00644458]
[1732310589764,1.97651777,3279.5,3279.4,0.00644458]
[1732310592604,1.96651777,3279.5,3279.4,0.00644458]
[1732310592813,2.00701233,3279.5,3279.4,0.00644458]
[1732310593841,1.96651777,3279.5,3279.4,0.00644458]
[1732310594045,1.99701233,3279.5,3279.4,0.00644458]
[1732310594234,1.98701233,3279.5,3279.4,0.00644458]
[1732310596078,0.40537672,3279.5,3279.4,0.00644458]
[1732310596354,0.43587128,3279.5,3279.4,0.0588813]
[1732310597279,0.98587128,3279.5,3279.4,0.0588813]
[1732310597423,0.98584769,3279.5,3279.4,0.0588813]
[1732310601326,0.95552659,3279.5,3279.4,0.0588813]
[1732310601523,0.98602115,3279.5,3279.4,0.0588813]
[1732310601709,0.98603741,3279.5,3279.4,0.0588813]
[1732310603955,0.98616122,3279.5,3279.4,0.0588813]
[1732310604114,0.95566666,3279.5,3279.4,0.0588813]
[1732310605289,0.95566666,3279.5,3279.4,0.5933813]
[1732310605577,0.671678,3279.5,3279.4,0.5933813]
[1732310606652,0.95568549,3279.5,3279.4,0.5933813]
[1732310606884,0.671678,3279.5,3279.4,0.5933813]
[1732310607186,0.671678,3279.5,3279.4,0.0588813]
[1732310607396,0.95569205,3279.5,3279.4,0.00644458]
[1732310607552,0.671678,3279.5,3279.4,0.00644458]
[1732310607756,0.9556806,3279.5,3279.4,0.05867978]
[1732310609187,0.671678,3279.5,3279.4,0.05867978]
[1732310609490,0.671678,3279.5,3279.4,0.59317978]
[1732310613001,0.95554176,3279.5,3279.4,0.05867978]
[1732310613500,0.95553326,3279.5,3279.4,0.05867978]
[1732310615856,0.95553326,3279.5,3279.4,0.00644458]
[1732310620869,0.95572688,3279.5,3279.4,0.00644458]
[1732310623794,0.95572688,3279.5,3279.4,0.05790861]
[1732310624384,0.98622144,3279.5,3279.4,0.05790861]
[1732310624589,1.77582144,3279.5,3279.4,0.05790861]
[1732310624919,1.6793547,3279.5,3279.4,0.00644458]
[1732310625070,1.96369123,3279.5,3279.4,0.00644458]
[1732310625275,0.01,3279.3,3279.1,0.00644458]
[1732310625497,1.65443109,3279.2,3279.1,0.00644458]
[1732310625705,1.8208742,3279.2,3279.1,0.00644458]
[1732310625904,1.8208742,3279.2,3279.0,0.00644458]
[1732310625905,1.3376,3279.1,3279.0,0.00644458]
[1732310626071,1.62193653,3279.1,3279.0,0.00644458]
[1732310628818,1.3376,3279.1,3279.0,0.00644458]
[1732310628980,1.77571443,3279.1,3279.0,0.00644458]
[1732310630273,1.21571443,3279.1,3279.0,0.00644458]
[1732310630975,1.22571443,3279.1,3279.0,0.00644458]
[1732310631218,1.25620899,3279.1,3279.0,0.00644458]
[1732310631608,1.80620899,3279.1,3279.0,0.00644458]
[1732310632878,1.81620899,3279.1,3279.0,0.00644458]
[1732310636780,1.53254833,3279.1,3279.0,0.00644458]
[1732310636979,3.36925353,3279.1,3279.0,0.00644458]
[1732310640092,3.35925353,3279.1,3279.0,0.00644458]
[1732310640279,3.34925353,3279.1,3279.0,0.00644458]
[1732310640620,3.35925353,3279.1,3279.0,0.00644458]
[1732310642695,1.8056587,3279.1,3279.0,0.00644458]
[1732310643019,1.7956587,3279.1,3279.0,0.00644458]
[1732310643230,1.7956587,3279.1,3274.8,0.03050747]
[1732310643231,0.00644449,3278.8,3277.2,0.31947288]
[1732310643529,0.03693905,3278.8,3277.3,1.59506992]
[1732310643831,0.28311037,3278.7,3277.5,1.54499683]
[1732310644118,0.03049456,3278.6,3277.6,1.57960292]
[1732310644286,0.03049456,3278.6,3277.6,1.95101009]
[1732310644479,0.00644449,3278.8,3277.6,1.95101009]
[1732310644683,0.00644449,3278.8,3277.6,1.63153721]
[1732310645291,0.55,3278.7,3277.6,1.63153721]
[1732310645507,0.55,3278.5,3277.6,0.05193429]
[1732310645682,0.55,3278.3,3277.6,0.05193429]
[1732310645879,0.03049456,3278.2,3276.5,1.5364075]
[1732310646194,0.03049456,3278.2,3277.1,1.56437174]
[1732310646394,0.03049456,3278.2,3276.7,1.52819988]
[1732310646590,0.03049456,3278.2,3277.2,0.05189823]
[1732310647019,0.03049456,3278.2,3277.3,0.05189823]
[1732310647392,0.03049456,3278.2,3277.4,0.05189823]
[1732310647595,0.03049456,3278.2,3276.5,1.5364075]
[1732310647828,0.03049456,3278.2,3276.7,1.52819988]
[1732310648208,0.03049456,3278.2,3276.8,0.05189823]
[1732310648410,0.03049456,3278.2,3276.9,1.51102671]
[1732310648596,0.28368919,3278.1,3276.9,1.51102671]
[1732310648795,0.58049456,3278.0,3277.0,1.63758854]
[1732310650135,0.55,3278.0,3277.0,1.63758854]
[1732310651541,0.55,3277.8,3277.0,1.63758854]
[1732310651902,0.55,3277.8,3277.0,1.58567556]
[1732310652103,0.55,3277.8,3276.4,0.04051116]
[1732310652104,0.55,3277.8,3276.5,1.5364075]
[1732310652305,0.55,3277.8,3276.0,1.52068338]
[1732310652624,0.768,3277.9,3276.0,1.52068338]
[1732310652625,0.55,3277.6,3276.0,1.52068338]
[1732310652810,0.31462884,3277.5,3276.0,1.52068338]
[1732310653009,0.83413428,3277.4,3276.2,1.53231413]
[1732310653207,0.55,3277.2,3276.2,1.53231413]
[1732310653406,0.03049456,3277.1,3275.2,1.50480616]
[1732310653606,0.03049456,3277.1,3275.4,1.55393839]
[1732310653837,0.03049456,3277.1,3275.5,0.03052089]
[1732310654128,0.03049456,3277.1,3275.6,1.54889132]
[1732310654333,0.55,3277.4,3275.6,1.54889132]
[1732310654334,0.03049456,3277.3,3275.6,1.54889132]
[1732310654530,0.03049456,3277.3,3275.3,0.00644458]
[1732310654531,0.03049456,3277.3,3275.4,1.55393839]
[1732310654732,0.03049456,3277.3,3275.7,0.0519097]
[1732310654938,0.03049456,3277.3,3275.4,1.55393839]
[1732310655164,0.03049456,3277.3,3275.9,1.59638437]
[1732310655482,0.03049456,3277.3,3276.0,0.05198184]
[1732310655660,0.03049456,3277.3,3275.4,1.55393839]
[1732310655978,0.03049456,3277.3,3275.6,1.54889132]
[1732310656344,0.03049456,3277.3,3275.4,1.55393839]
[1732310656568,0.03049456,3277.3,3275.8,1.5905098]
[1732310657075,0.03049456,3277.3,3276.0,1.52068338]
[1732310657076,0.55,3277.1,3276.0,1.52068338]
[1732310657247,0.55,3276.9,3276.0,1.52068338]
[1732310657489,0.03049456,3276.8,3276.1,0.05198184]
[1732310657659,0.03049456,3276.8,3276.2,1.53231413]
[1732310658084,0.03049456,3276.8,3275.3,0.00644458]
[1732310658085,0.03049456,3276.8,3276.3,0.05198184]
[1732310658565,0.03049456,3276.8,3275.4,1.55393839]
[1732310658760,0.03049456,3276.8,3276.4,0.05198184]
[1732310659070,0.03049456,3276.8,3275.3,0.00644458]
[1732310659071,0.03049456,3276.8,3276.5,0.05198184]
[1732310659269,0.28389803,3276.7,3275.4,1.55393839]
[1732310659488,0.8065,3276.5,3275.5,0.05198184]
[1732310659686,0.55,3276.3,3275.5,0.05198184]
[1732310660005,0.55,3275.9,3275.3,0.00644458]
[1732310660214,0.03049456,3275.8,3275.3,0.00644458]
[1732310660414,0.55,3275.7,3275.3,0.00644458]
[1732310660699,0.55,3275.5,3275.3,0.00644458]
[1732310660861,0.58049456,3275.5,3275.3,0.00644458]
[1732310661262,1.3565,3275.4,3275.3,0.00644458]
[1732310661686,0.55,3275.4,3275.3,0.00644458]
[1732310661903,0.58049456,3275.6,3275.3,0.00644458]
[1732310662197,0.55,3275.6,3275.3,0.00644458]
[1732310663112,0.03049456,3276.0,3275.3,0.00644458]
[1732310663280,0.03049456,3276.5,3275.3,0.00644458]
[1732310664484,0.58049456,3276.5,3275.3,0.00644458]
[1732310666349,0.7865,3276.2,3275.3,0.00644458]
[1732310666503,0.58049456,3276.1,3275.3,0.00644458]
[1732310668935,0.03049456,3276.1,3275.3,0.00644458]
[1732310670195,0.58049456,3276.1,3275.3,0.00644458]
[1732310671294,0.7865,3276.6,3275.3,0.00644458]
[1732310671497,0.03049456,3276.5,3275.3,0.00644458]
[1732310672934,0.7865,3276.9,3275.3,0.00644458]
[1732310672935,0.03049456,3276.8,3275.3,0.00644458]
[1732310673914,0.03049456,3277.1,3275.4,0.05259203]
[1732310674413,0.7987,3276.9,3275.4,0.05259203]
[1732310674609,0.7987,3276.5,3275.4,0.05259203]
[1732310674814,0.58049456,3276.4,3275.4,0.05259203]
[1732310675043,0.58049456,3276.4,3275.3,0.00644458]
[1732310675929,0.01,3275.6,3273.8,0.00644458]
[1732310676133,0.01,3275.6,3273.9,0.05260023]
[1732310676442,0.55,3275.5,3274.0,0.01530675]
[1732310676632,0.0381677,3275.4,3274.0,0.01530675]
[1732310676818,0.55,3275.3,3274.0,0.01530675]
[1732310677144,0.55,3275.1,3274.1,0.05260023]
[1732310677348,0.55,3275.3,3274.1,0.05260023]
[1732310677508,0.55,3275.1,3274.1,0.05260023]
[1732310677705,0.55,3275.1,3273.8,0.02175087]
[1732310678045,0.55,3275.1,3274.0,0.00644458]
[1732310678244,0.55,3275.1,3274.1,0.00644458]
[1732310678446,0.04816543,3276.2,3274.3,0.00644458]
[1732310678755,0.55,3276.2,3274.4,0.01529606]
[1732310679269,0.55,3276.0,3274.4,0.01529606]
[1732310679540,0.55,3275.8,3274.4,0.01529606]
[1732310680060,0.03816262,3276.2,3274.5,0.00644458]
[1732310680254,0.03816262,3276.2,3274.6,0.01529109]
[1732310681461,0.55,3276.1,3274.6,0.01529109]
[1732310681640,0.55,3275.9,3274.6,0.01529109]
[1732310682151,0.55,3275.7,3274.6,0.01529109]
[1732310688161,0.8292,3276.3,3274.9,0.00644458]
[1732310688328,0.8292,3276.3,3275.1,0.00644458]
[1732310688329,0.121756,3276.3,3275.1,0.00644458]
[1732310688524,0.121756,3276.3,3275.2,0.05249356]
[1732310688727,0.121756,3276.3,3275.4,0.00644458]
[1732310688928,0.121756,3276.3,3275.5,0.02171317]
[1732310689559,0.8148,3276.9,3275.5,0.02171317]
[1732310689735,1.6296,3276.9,3275.5,0.02171317]
[1732310690134,0.55,3276.8,3275.5,0.02171317]
[1732310691028,0.76796,3276.8,3275.5,0.02171317]
[1732310691453,0.55,3276.8,3275.5,0.02171317]
[1732310691636,0.8148,3276.9,3275.6,0.00644458]
[1732310691836,0.8133,3277.3,3275.7,0.01526839]
[1732310692061,0.55,3277.2,3275.7,0.01526839]
[1732310692473,0.55,3277.0,3275.7,0.01526839]
[1732310692625,0.55,3277.0,3275.8,1.53895739]
[1732310692963,0.55,3277.0,3275.9,1.62209463]
[1732310693134,0.55,3277.2,3275.9,1.62209463]
[1732310693530,0.55,3277.2,3275.9,1.62853921]
[1732310695371,0.8183,3277.6,3276.1,1.56851413]